[Event "*** Titled Tuesday Blitz"]
[Site "Chess.com"]
[Date "2018.09.04"]
[Round "10"]
[White "AkibaRubi"]
[Black "jeetjain"]
[Result "0-1"]
[WhiteElo "2497"]
[BlackElo "2326"]
[TimeControl "180+2"]
[EndTime "15:49:40 PDT"]
[Termination "jeetjain won by resignation"]

1. b3 {[%clk 0:03:00.3]} 1... d5 {[%clk 0:02:58.5]} 2. Bb2 {[%clk 0:03:00.5]}
2... c5 {[%clk 0:02:59.5]} 3. Nf3 {[%clk 0:03:00.7]} 3... Nf6 {[%clk 0:02:59.4]}
4. e3 {[%clk 0:03:01.7]} 4... e6 {[%clk 0:02:59.1]} 5. Bb5+ {[%clk 0:03:02.3]}
5... Bd7 {[%clk 0:02:58]} 6. Bxd7+ {[%clk 0:03:02.5]} 6... Nbxd7 {[%clk
0:02:59.9]} 7. O-O {[%clk 0:03:04.1]} 7... Bd6 {[%clk 0:03:00.4]} 8. d3 {[%clk
0:03:05.1]} 8... O-O {[%clk 0:03:01]} 9. Nbd2 {[%clk 0:03:06.1]} 9... Qc7 {[%clk
0:02:59.2]} 10. e4 {[%clk 0:03:06.4]} 10... b5 {[%clk 0:02:35.1]} 11. Re1 {[%clk
0:03:05.9]} 11... Be7 {[%clk 0:02:34.9]} 12. exd5 {[%clk 0:03:03]} 12... Nxd5
{[%clk 0:02:35.1]} 13. Ne5 {[%clk 0:03:00.9]} 13... Bf6 {[%clk 0:02:24.4]} 14.
Nxd7 {[%clk 0:02:57.3]} 14... Bxb2 {[%clk 0:02:12.3]} 15. Nxf8 {[%clk
0:02:57.1]} 15... Bxa1 {[%clk 0:02:12.9]} 16. Nxe6 {[%clk 0:02:56.7]} 16... fxe6
{[%clk 0:02:09.6]} 17. Qxa1 {[%clk 0:02:57.3]} 17... Rf8 {[%clk 0:02:02.1]} 18.
Qe5 {[%clk 0:02:41.2]} 18... Qb7 {[%clk 0:01:49.4]} 19. Qxe6+ {[%clk 0:02:37.8]}
19... Kh8 {[%clk 0:01:50.9]} 20. Qd6 {[%clk 0:02:33.4]} 20... Kg8 {[%clk
0:01:47.2]} 21. Qxc5 {[%clk 0:02:21.6]} 21... Nf4 {[%clk 0:01:46.7]} 22. Re4
{[%clk 0:02:19]} 22... Qf7 {[%clk 0:01:42.2]} 23. Qe3 {[%clk 0:01:11.7]} 23...
a6 {[%clk 0:01:39.6]} 24. Re7 {[%clk 0:01:07]} 24... Qg6 {[%clk 0:01:38.3]} 25.
Qg3 {[%clk 0:01:04.5]} 25... Qf6 {[%clk 0:01:38]} 26. Re1 {[%clk 0:01:02.3]}
26... h6 {[%clk 0:01:38]} 27. Ne4 {[%clk 0:01:01.6]} 27... Qb2 {[%clk
0:01:35.4]} 28. c4 {[%clk 0:00:50.8]} 28... Ne2+ {[%clk 0:01:31.5]} 29. Rxe2
{[%clk 0:00:41]} 29... Qc1+ {[%clk 0:01:30.6]} 0-1

[Event "*** Titled Tuesday Blitz"]
[Site "Chess.com"]
[Date "2018.09.04"]
[Round "10"]
[White "metra93"]
[Black "Korchmar_Vasiliy"]
[Result "0-1"]
[WhiteElo "2515"]
[BlackElo "2666"]
[TimeControl "180+2"]
[EndTime "15:49:42 PDT"]
[Termination "Korchmar_Vasiliy won by resignation"]

1. e4 {[%clk 0:01:00.5]} 1... c5 {[%clk 0:02:55.7]} 2. Nf3 {[%clk 0:01:01.4]}
2... e6 {[%clk 0:02:57.1]} 3. d4 {[%clk 0:01:02.1]} 3... cxd4 {[%clk 0:02:58.7]}
4. Nxd4 {[%clk 0:01:04]} 4... a6 {[%clk 0:02:59.7]} 5. Nc3 {[%clk 0:01:05.3]}
5... d6 {[%clk 0:02:59.4]} 6. Bd3 {[%clk 0:01:05.9]} 6... Nf6 {[%clk 0:02:58.3]}
7. O-O {[%clk 0:01:07.4]} 7... Nbd7 {[%clk 0:02:55.9]} 8. Qe2 {[%clk 0:01:08.4]}
8... b5 {[%clk 0:02:56.7]} 9. f4 {[%clk 0:01:09]} 9... Nc5 {[%clk 0:02:44.2]}
10. f5 {[%clk 0:01:09.6]} 10... e5 {[%clk 0:02:42.9]} 11. Nb3 {[%clk 0:01:10]}
11... Nxd3 {[%clk 0:02:36.7]} 12. Qxd3 {[%clk 0:01:10.3]} 12... b4 {[%clk
0:02:23.8]} 13. Nd5 {[%clk 0:01:10.9]} 13... Nxd5 {[%clk 0:02:24.7]} 14. Qxd5
{[%clk 0:01:12.8]} 14... Qb6+ {[%clk 0:02:20.5]} 15. Kh1 {[%clk 0:01:13.7]}
15... Bb7 {[%clk 0:02:21.8]} 16. Qd3 {[%clk 0:01:14.2]} 16... Be7 {[%clk
0:02:16.9]} 17. Be3 {[%clk 0:01:14.7]} 17... Qc6 {[%clk 0:02:12.4]} 18. Nd2
{[%clk 0:01:15.8]} 18... O-O {[%clk 0:02:12]} 19. Rac1 {[%clk 0:01:16]} 19... d5
{[%clk 0:02:08.3]} 20. exd5 {[%clk 0:01:02.6]} 20... Qxd5 {[%clk 0:02:10.2]} 21.
Qxd5 {[%clk 0:01:03.7]} 21... Bxd5 {[%clk 0:02:11.9]} 22. c4 {[%clk 0:01:05]}
22... bxc3 {[%clk 0:02:06.6]} 23. Rxc3 {[%clk 0:01:06.1]} 23... Rfd8 {[%clk
0:01:56.4]} 24. b3 {[%clk 0:01:03.9]} 24... f6 {[%clk 0:01:50]} 25. h3 {[%clk
0:01:04.6]} 25... Bb4 {[%clk 0:01:50]} 26. Rc2 {[%clk 0:01:05.5]} 26... a5
{[%clk 0:01:47.6]} 27. Kh2 {[%clk 0:01:06.3]} 27... a4 {[%clk 0:01:44.5]} 28.
Rf2 {[%clk 0:00:50.5]} 28... a3 {[%clk 0:01:35]} 29. Bc5 {[%clk 0:00:49.2]}
29... Rac8 {[%clk 0:01:29.9]} 30. Bb6 {[%clk 0:00:24.8]} 30... Rxc2 {[%clk
0:01:31.8]} 31. Bxd8 {[%clk 0:00:24.9]} 31... Rxd2 {[%clk 0:01:29.1]} 0-1

[Event "*** Titled Tuesday Blitz"]
[Site "Chess.com"]
[Date "2018.09.04"]
[Round "10"]
[White "Polish_fighter3000"]
[Black "GMKrikor"]
[Result "1-0"]
[WhiteElo "2899"]
[BlackElo "2745"]
[TimeControl "180+2"]
[EndTime "15:49:50 PDT"]
[Termination "Polish_fighter3000 won on time"]

1. d4 {[%clk 0:03:01.9]} 1... Nf6 {[%clk 0:03:00.7]} 2. c4 {[%clk 0:03:03.4]}
2... e6 {[%clk 0:03:00]} 3. Nf3 {[%clk 0:03:02.7]} 3... d5 {[%clk 0:02:58.2]} 4.
Bg5 {[%clk 0:02:59.9]} 4... Bb4+ {[%clk 0:02:56.9]} 5. Nc3 {[%clk 0:02:59.5]}
5... h6 {[%clk 0:02:55.5]} 6. Bxf6 {[%clk 0:02:59.6]} 6... Qxf6 {[%clk
0:02:57.4]} 7. Qa4+ {[%clk 0:03:00.1]} 7... Nc6 {[%clk 0:02:58.1]} 8. e3 {[%clk
0:03:01.6]} 8... O-O {[%clk 0:02:55]} 9. Rc1 {[%clk 0:03:01.9]} 9... Qg6 {[%clk
0:02:51.4]} 10. Qc2 {[%clk 0:02:52.2]} 10... Qxc2 {[%clk 0:02:51.9]} 11. Rxc2
{[%clk 0:02:54.1]} 11... Rd8 {[%clk 0:02:42.3]} 12. a3 {[%clk 0:02:55]} 12...
Bf8 {[%clk 0:02:41.1]} 13. Nb5 {[%clk 0:02:55.5]} 13... Rd7 {[%clk 0:02:35.7]}
14. cxd5 {[%clk 0:02:56.6]} 14... exd5 {[%clk 0:02:33.4]} 15. Bd3 {[%clk
0:02:58]} 15... a6 {[%clk 0:02:26.6]} 16. Nc3 {[%clk 0:02:59.4]} 16... Ne7
{[%clk 0:02:10.5]} 17. Na4 {[%clk 0:02:49.1]} 17... f6 {[%clk 0:02:00.2]} 18.
Ke2 {[%clk 0:02:47.2]} 18... Rb8 {[%clk 0:01:58.9]} 19. Rhc1 {[%clk 0:02:46]}
19... c6 {[%clk 0:01:54]} 20. Nb6 {[%clk 0:02:47.4]} 20... Rd8 {[%clk
0:01:51.3]} 21. Nxc8 {[%clk 0:02:48.8]} 21... Nxc8 {[%clk 0:01:45]} 22. g4
{[%clk 0:02:50.7]} 22... Nd6 {[%clk 0:01:34.7]} 23. h4 {[%clk 0:02:52.6]} 23...
Re8 {[%clk 0:01:35.3]} 24. Bg6 {[%clk 0:02:49.7]} 24... Re7 {[%clk 0:01:32.2]}
25. Ne1 {[%clk 0:02:50.6]} 25... Nc4 {[%clk 0:01:24.4]} 26. Nd3 {[%clk
0:02:49.6]} 26... Rc7 {[%clk 0:01:24.3]} 27. Rg1 {[%clk 0:02:41.4]} 27... Bd6
{[%clk 0:01:21.7]} 28. g5 {[%clk 0:02:36.6]} 28... fxg5 {[%clk 0:01:18.2]} 29.
hxg5 {[%clk 0:02:38.5]} 29... hxg5 {[%clk 0:01:09.8]} 30. Rxg5 {[%clk
0:02:37.5]} 30... Rf8 {[%clk 0:01:10.4]} 31. Rc1 {[%clk 0:02:37.9]} 31... Rf6
{[%clk 0:01:11.3]} 32. Rh1 {[%clk 0:02:38.4]} 32... Re7 {[%clk 0:00:42.1]} 33.
Rh3 {[%clk 0:02:36]} 33... Ree6 {[%clk 0:00:31.8]} 34. Bf5 {[%clk 0:02:29.7]}
34... Re7 {[%clk 0:00:33.3]} 35. f4 {[%clk 0:02:24.7]} 35... Ref7 {[%clk
0:00:18.4]} 36. Bg6 {[%clk 0:02:14]} 36... Re7 {[%clk 0:00:17]} 37. Ne5 {[%clk
0:02:10.7]} 1-0

[Event "*** Titled Tuesday Blitz"]
[Site "Chess.com"]
[Date "2018.09.04"]
[Round "10"]
[White "Nakachuk"]
[Black "Aklanion"]
[Result "1-0"]
[WhiteElo "2665"]
[BlackElo "2154"]
[TimeControl "180+2"]
[EndTime "15:49:54 PDT"]
[Termination "Nakachuk won by checkmate"]

1. g3 {[%clk 0:03:01.9]} 1... f5 {[%clk 0:03:00.4]} 2. Bg2 {[%clk 0:03:02.6]}
2... Nf6 {[%clk 0:03:02]} 3. Nf3 {[%clk 0:03:04.5]} 3... g6 {[%clk 0:03:03.4]}
4. O-O {[%clk 0:03:06.4]} 4... Bg7 {[%clk 0:03:05]} 5. d3 {[%clk 0:03:08.3]}
5... O-O {[%clk 0:03:06.5]} 6. Nbd2 {[%clk 0:03:10.2]} 6... d6 {[%clk 0:03:07]}
7. e4 {[%clk 0:03:12.1]} 7... e5 {[%clk 0:03:07.5]} 8. exf5 {[%clk 0:03:09.3]}
8... gxf5 {[%clk 0:03:09.4]} 9. c3 {[%clk 0:03:09.4]} 9... Nc6 {[%clk 0:03:07]}
10. Re1 {[%clk 0:03:01.7]} 10... Kh8 {[%clk 0:03:07.4]} 11. d4 {[%clk
0:03:02.8]} 11... e4 {[%clk 0:03:05.7]} 12. Ng5 {[%clk 0:03:04.2]} 12... Ng4
{[%clk 0:02:54.6]} 13. Nh3 {[%clk 0:02:58.2]} 13... d5 {[%clk 0:02:50]} 14. Nf1
{[%clk 0:02:54.3]} 14... Qe8 {[%clk 0:02:45.7]} 15. Ne3 {[%clk 0:02:54]} 15...
Nxe3 {[%clk 0:02:45.3]} 16. Bxe3 {[%clk 0:02:55.9]} 16... Nd8 {[%clk 0:02:45.5]}
17. f3 {[%clk 0:02:53.7]} 17... Ne6 {[%clk 0:02:45.5]} 18. Qd2 {[%clk 0:02:51]}
18... Qg6 {[%clk 0:02:38.3]} 19. Rf1 {[%clk 0:02:51.1]} 19... Bd7 {[%clk
0:02:37.4]} 20. Rae1 {[%clk 0:02:50.5]} 20... Bb5 {[%clk 0:02:38.2]} 21. Rf2
{[%clk 0:02:51.5]} 21... Bd3 {[%clk 0:02:39.4]} 22. Bf4 {[%clk 0:02:49.8]} 22...
c6 {[%clk 0:02:38.4]} 23. Bd6 {[%clk 0:02:48.8]} 23... Rf7 {[%clk 0:02:36.9]}
24. Bf4 {[%clk 0:02:38.5]} 24... Rc8 {[%clk 0:02:30.6]} 25. Bf1 {[%clk
0:02:38.9]} 25... Bxf1 {[%clk 0:02:30.5]} 26. Rexf1 {[%clk 0:02:40.8]} 26... Rd7
{[%clk 0:02:07.5]} 27. fxe4 {[%clk 0:02:40]} 27... fxe4 {[%clk 0:02:09.4]} 28.
Be3 {[%clk 0:02:38.5]} 28... b6 {[%clk 0:02:06.9]} 29. Rf5 {[%clk 0:02:35.1]}
29... Rf8 {[%clk 0:02:05.2]} 30. Rxf8+ {[%clk 0:02:34.2]} 30... Bxf8 {[%clk
0:02:03.6]} 31. Qf2 {[%clk 0:02:31.6]} 31... Bg7 {[%clk 0:02:00.6]} 32. Nf4
{[%clk 0:02:32]} 32... Nxf4 {[%clk 0:02:00.9]} 33. Qxf4 {[%clk 0:02:33.9]} 33...
Qe8 {[%clk 0:01:57.6]} 34. h4 {[%clk 0:02:32.3]} 34... Kg8 {[%clk 0:01:57.7]}
35. Qg4 {[%clk 0:02:26]} 35... Rd6 {[%clk 0:01:31.5]} 36. h5 {[%clk 0:02:20.6]}
36... Qd7 {[%clk 0:01:32.5]} 37. Qh4 {[%clk 0:02:10.3]} 37... Qd8 {[%clk
0:01:04.7]} 38. Bg5 {[%clk 0:02:10.6]} 38... Qe8 {[%clk 0:01:02.4]} 39. h6
{[%clk 0:02:11.6]} 39... Bh8 {[%clk 0:01:01.4]} 40. Be7 {[%clk 0:02:10.4]} 40...
Rd7 {[%clk 0:00:36]} 41. Qg4+ {[%clk 0:02:02.2]} 41... Qg6 {[%clk 0:00:37]} 42.
Rf8# {[%clk 0:01:49.9]} 1-0

[Event "*** Titled Tuesday Blitz"]
[Site "Chess.com"]
[Date "2018.09.04"]
[Round "10"]
[White "Saitama_Hero"]
[Black "CrushingKings"]
[Result "0-1"]
[WhiteElo "2200"]
[BlackElo "2175"]
[TimeControl "180+2"]
[EndTime "15:49:59 PDT"]
[Termination "CrushingKings won on time"]

1. Nf3 {[%clk 0:03:01.9]} 1... Nf6 {[%clk 0:01:49.9]} 2. c4 {[%clk 0:02:52.4]}
2... g6 {[%clk 0:01:50.6]} 3. Nc3 {[%clk 0:02:50]} 3... Bg7 {[%clk 0:01:52]} 4.
e4 {[%clk 0:01:54.6]} 4... d6 {[%clk 0:01:53.1]} 5. d4 {[%clk 0:01:55.5]} 5...
O-O {[%clk 0:01:54.3]} 6. Be2 {[%clk 0:01:56.7]} 6... e5 {[%clk 0:01:54]} 7. O-O
{[%clk 0:01:58]} 7... Nc6 {[%clk 0:01:54.9]} 8. d5 {[%clk 0:01:59.2]} 8... Ne7
{[%clk 0:01:56.3]} 9. b4 {[%clk 0:01:59.8]} 9... Ne8 {[%clk 0:01:56.2]} 10. Ba3
{[%clk 0:01:57.4]} 10... f5 {[%clk 0:01:57]} 11. Nd2 {[%clk 0:01:57.3]} 11... a5
{[%clk 0:01:52.7]} 12. c5 {[%clk 0:01:42.9]} 12... h5 {[%clk 0:01:34.6]} 13. Nc4
{[%clk 0:01:32.9]} 13... f4 {[%clk 0:01:27.6]} 14. bxa5 {[%clk 0:01:22]} 14...
Rf6 {[%clk 0:01:20.5]} 15. f3 {[%clk 0:00:56.2]} 15... g5 {[%clk 0:01:17.7]} 16.
Qb3 {[%clk 0:00:55.9]} 16... g4 {[%clk 0:01:16.1]} 17. Nb5 {[%clk 0:00:53.5]}
17... g3 {[%clk 0:01:12]} 18. hxg3 {[%clk 0:00:52.8]} 18... fxg3 {[%clk
0:01:09.4]} 19. cxd6 {[%clk 0:00:49.5]} 19... cxd6 {[%clk 0:01:04]} 20. f4
{[%clk 0:00:38.1]} 20... Rg6 {[%clk 0:01:02]} 21. f5 {[%clk 0:00:37.4]} 21...
Nxf5 {[%clk 0:01:01.6]} 22. Rxf5 {[%clk 0:00:15.1]} 22... Bxf5 {[%clk 0:01:01]}
23. exf5 {[%clk 0:00:17]} 23... Qh4 {[%clk 0:01:01.2]} 0-1

[Event "*** Titled Tuesday Blitz"]
[Site "Chess.com"]
[Date "2018.09.04"]
[Round "10"]
[White "Quiet_Desperation"]
[Black "Fins0905"]
[Result "1-0"]
[WhiteElo "1939"]
[BlackElo "2561"]
[TimeControl "180+2"]
[EndTime "15:50:07 PDT"]
[Termination "Quiet_Desperation won by checkmate"]

1. e4 {[%clk 0:03:01.9]} 1... d5 {[%clk 0:03:00]} 2. exd5 {[%clk 0:03:02.3]}
2... Qxd5 {[%clk 0:03:00.6]} 3. Nc3 {[%clk 0:03:03.9]} 3... Qd8 {[%clk
0:03:01.5]} 4. Nf3 {[%clk 0:03:05.2]} 4... Nf6 {[%clk 0:03:02.7]} 5. Bc4 {[%clk
0:03:06.1]} 5... a6 {[%clk 0:03:01.8]} 6. h3 {[%clk 0:03:06.1]} 6... b5 {[%clk
0:03:01.2]} 7. Bd3 {[%clk 0:03:03.2]} 7... c5 {[%clk 0:02:55.3]} 8. Ne4 {[%clk
0:03:00.5]} 8... Nbd7 {[%clk 0:02:31.8]} 9. Qe2 {[%clk 0:02:58.2]} 9... e6
{[%clk 0:02:28.4]} 10. Nxf6+ {[%clk 0:02:49.4]} 10... Nxf6 {[%clk 0:02:26.2]}
11. c3 {[%clk 0:02:50]} 11... Bb7 {[%clk 0:02:23.9]} 12. Bc2 {[%clk 0:02:46.9]}
12... Bd6 {[%clk 0:02:18.3]} 13. O-O {[%clk 0:02:42.5]} 13... O-O {[%clk
0:02:18.4]} 14. d4 {[%clk 0:02:40.4]} 14... Qc7 {[%clk 0:02:13.4]} 15. Bg5
{[%clk 0:02:35.9]} 15... Nd5 {[%clk 0:02:09.9]} 16. Qe4 {[%clk 0:02:17.4]} 16...
g6 {[%clk 0:01:59.8]} 17. Qh4 {[%clk 0:02:09.2]} 17... cxd4 {[%clk 0:01:57]} 18.
Bh6 {[%clk 0:02:02.3]} 18... Rfd8 {[%clk 0:01:48.2]} 19. Qxd4 {[%clk 0:01:52.8]}
19... e5 {[%clk 0:01:31.4]} 20. Qh4 {[%clk 0:01:49.7]} 20... Be7 {[%clk
0:01:12.8]} 21. Ng5 {[%clk 0:01:41.5]} 21... Nf4 {[%clk 0:01:03.4]} 22. Bb3
{[%clk 0:01:32.6]} 22... Bd5 {[%clk 0:00:33.5]} 23. Bxd5 {[%clk 0:01:31.4]}
23... Rxd5 {[%clk 0:00:35.4]} 24. Qg4 {[%clk 0:01:25.8]} 24... f5 {[%clk
0:00:21.7]} 25. Qf3 {[%clk 0:01:22.8]} 25... e4 {[%clk 0:00:20.7]} 26. Nxe4
{[%clk 0:01:11.4]} 26... fxe4 {[%clk 0:00:17.5]} 27. Qxf4 {[%clk 0:01:12.3]}
27... Bd6 {[%clk 0:00:12.4]} 28. Qxe4 {[%clk 0:01:08.3]} 28... Qc4 {[%clk
0:00:13.1]} 29. Qe6+ {[%clk 0:01:04.8]} 29... Kh8 {[%clk 0:00:11.2]} 30. Qf6+
{[%clk 0:01:02.9]} 30... Kg8 {[%clk 0:00:12]} 31. Qg7# {[%clk 0:01:04.5]} 1-0

[Event "*** Titled Tuesday Blitz"]
[Site "Chess.com"]
[Date "2018.09.04"]
[Round "10"]
[White "jk13"]
[Black "ChainsOfFantasia"]
[Result "1-0"]
[WhiteElo "2537"]
[BlackElo "2385"]
[TimeControl "180+2"]
[EndTime "15:50:24 PDT"]
[Termination "jk13 won by resignation"]

1. e4 {[%clk 0:03:01.7]} 1... c6 {[%clk 0:02:59.6]} 2. Nc3 {[%clk 0:03:02.5]}
2... d5 {[%clk 0:03:01.5]} 3. Nf3 {[%clk 0:03:04.2]} 3... Nf6 {[%clk 0:03:02]}
4. e5 {[%clk 0:03:04.1]} 4... Ne4 {[%clk 0:03:02.8]} 5. Ne2 {[%clk 0:03:05.5]}
5... Qb6 {[%clk 0:03:03.3]} 6. d4 {[%clk 0:03:07.4]} 6... e6 {[%clk 0:03:03.2]}
7. Nfg1 {[%clk 0:03:05.6]} 7... f6 {[%clk 0:03:03.9]} 8. f3 {[%clk 0:03:06.6]}
8... Ng5 {[%clk 0:03:04.8]} 9. exf6 {[%clk 0:03:05.8]} 9... gxf6 {[%clk
0:03:06.7]} 10. f4 {[%clk 0:03:05.5]} 10... Nf7 {[%clk 0:03:07.9]} 11. Nf3
{[%clk 0:03:05.8]} 11... e5 {[%clk 0:03:09]} 12. c3 {[%clk 0:03:03.1]} 12... e4
{[%clk 0:02:40.6]} 13. Nh4 {[%clk 0:03:04]} 13... c5 {[%clk 0:02:40.7]} 14. Rb1
{[%clk 0:02:43.9]} 14... Nc6 {[%clk 0:02:33.1]} 15. Be3 {[%clk 0:02:44.9]} 15...
Bg4 {[%clk 0:02:09.2]} 16. Qa4 {[%clk 0:02:32.3]} 16... Bxe2 {[%clk 0:02:06.8]}
17. Bxe2 {[%clk 0:02:34.2]} 17... O-O-O {[%clk 0:02:02.6]} 18. Nf5 {[%clk
0:02:33]} 18... cxd4 {[%clk 0:02:00.9]} 19. cxd4 {[%clk 0:02:16]} 19... Qb4+
{[%clk 0:01:56.6]} 20. Qxb4 {[%clk 0:02:16.5]} 20... Bxb4+ {[%clk 0:01:58.5]}
21. Kf2 {[%clk 0:02:17.4]} 21... Nd6 {[%clk 0:01:59.6]} 22. Bg4 {[%clk
0:02:06.1]} 22... Nxf5 {[%clk 0:01:58.4]} 23. Bxf5+ {[%clk 0:02:08]} 23... Kb8
{[%clk 0:02:00]} 24. Rbc1 {[%clk 0:02:04]} 24... Ne7 {[%clk 0:01:56.8]} 25. Bg4
{[%clk 0:01:53.1]} 25... f5 {[%clk 0:01:56.9]} 26. Be2 {[%clk 0:01:53.9]} 26...
Bd6 {[%clk 0:01:56.5]} 27. Bh5 {[%clk 0:01:50]} 27... Ng6 {[%clk 0:01:47.7]} 28.
g3 {[%clk 0:01:50.1]} 28... Rc8 {[%clk 0:01:48.8]} 29. Ke2 {[%clk 0:01:46.9]}
29... Rxc1 {[%clk 0:01:47.1]} 30. Rxc1 {[%clk 0:01:48.8]} 30... Rc8 {[%clk
0:01:48.2]} 31. Rxc8+ {[%clk 0:01:47.7]} 31... Kxc8 {[%clk 0:01:50.1]} 32. Kd2
{[%clk 0:01:46.5]} 32... Kc7 {[%clk 0:01:49]} 33. Be2 {[%clk 0:01:47.3]} 33...
Kc6 {[%clk 0:01:49]} 34. Kc2 {[%clk 0:01:45.1]} 34... b5 {[%clk 0:01:37.8]} 35.
a3 {[%clk 0:01:40.4]} 35... a5 {[%clk 0:01:38]} 36. Bf1 {[%clk 0:01:30.2]} 36...
Be7 {[%clk 0:01:32]} 37. Bh3 {[%clk 0:01:29.4]} 37... b4 {[%clk 0:00:56.2]} 38.
axb4 {[%clk 0:01:21.4]} 38... axb4 {[%clk 0:00:57.4]} 39. Bxf5 {[%clk
0:01:21.4]} 39... Nf8 {[%clk 0:00:28.2]} 40. Kb3 {[%clk 0:01:21]} 1-0

[Event "*** Titled Tuesday Blitz"]
[Site "Chess.com"]
[Date "2018.09.04"]
[Round "10"]
[White "Bryakin_Mikhail"]
[Black "lexisvar"]
[Result "0-1"]
[WhiteElo "2542"]
[BlackElo "2442"]
[TimeControl "180+2"]
[EndTime "15:50:35 PDT"]
[Termination "lexisvar won by checkmate"]

1. d4 {[%clk 0:02:57.6]} 1... Nf6 {[%clk 0:02:59.6]} 2. c4 {[%clk 0:02:49.7]}
2... e6 {[%clk 0:03:00.5]} 3. Nc3 {[%clk 0:02:35.4]} 3... Bb4 {[%clk 0:03:00.2]}
4. e3 {[%clk 0:02:35.6]} 4... O-O {[%clk 0:03:00]} 5. Ne2 {[%clk 0:02:36.9]}
5... b6 {[%clk 0:02:56.7]} 6. a3 {[%clk 0:02:37.9]} 6... Be7 {[%clk 0:02:57.9]}
7. Nf4 {[%clk 0:02:27.4]} 7... Bb7 {[%clk 0:02:57.4]} 8. Be2 {[%clk 0:02:27.4]}
8... d5 {[%clk 0:02:58]} 9. Bf3 {[%clk 0:02:26.9]} 9... c6 {[%clk 0:02:58.5]}
10. O-O {[%clk 0:02:27.8]} 10... Bd6 {[%clk 0:02:58.6]} 11. cxd5 {[%clk
0:02:23]} 11... cxd5 {[%clk 0:02:58.4]} 12. Nd3 {[%clk 0:02:22.1]} 12... Nbd7
{[%clk 0:02:57.5]} 13. b4 {[%clk 0:02:16]} 13... Qe7 {[%clk 0:02:58]} 14. Bb2
{[%clk 0:02:10.9]} 14... Rac8 {[%clk 0:02:58.8]} 15. Rc1 {[%clk 0:02:11.1]}
15... Ba6 {[%clk 0:02:50.8]} 16. b5 {[%clk 0:02:03.9]} 16... Bb7 {[%clk
0:02:51.8]} 17. Qa4 {[%clk 0:02:02.3]} 17... e5 {[%clk 0:02:32.1]} 18. Qxa7
{[%clk 0:01:32.4]} 18... Rc7 {[%clk 0:02:31.4]} 19. dxe5 {[%clk 0:01:23.3]}
19... Nxe5 {[%clk 0:02:31.9]} 20. Nxe5 {[%clk 0:01:21.1]} 20... Qxe5 {[%clk
0:02:24]} 21. g3 {[%clk 0:01:20.7]} 21... Qf5 {[%clk 0:02:18.7]} 22. Bg2 {[%clk
0:01:12.6]} 22... Bc5 {[%clk 0:02:13.5]} 23. Qa4 {[%clk 0:00:58.3]} 23... Qh5
{[%clk 0:02:00.2]} 24. Qd1 {[%clk 0:00:56.3]} 24... Qg5 {[%clk 0:01:53]} 25. Na4
{[%clk 0:00:48.2]} 25... Rd8 {[%clk 0:01:34.3]} 26. Nxc5 {[%clk 0:00:27.6]}
26... bxc5 {[%clk 0:01:33.3]} 27. a4 {[%clk 0:00:29]} 27... d4 {[%clk
0:01:25.3]} 28. exd4 {[%clk 0:00:25.9]} 28... Bxg2 {[%clk 0:01:24.4]} 29. Kxg2
{[%clk 0:00:27.8]} 29... Rcd7 {[%clk 0:01:19]} 30. Qd3 {[%clk 0:00:16.2]} 30...
cxd4 {[%clk 0:01:16]} 31. Rc6 {[%clk 0:00:10.2]} 31... Ng4 {[%clk 0:01:13.9]}
32. Bc1 {[%clk 0:00:05.5]} 32... Qd5+ {[%clk 0:01:13.4]} 33. Kg1 {[%clk
0:00:03.1]} 33... Ne5 {[%clk 0:01:14]} 34. Qc2 {[%clk 0:00:03.6]} 34... Nf3+
{[%clk 0:01:14.1]} 35. Kh1 {[%clk 0:00:04.7]} 35... Ne1+ {[%clk 0:01:14.7]} 36.
Kg1 {[%clk 0:00:04.8]} 36... Qg2# {[%clk 0:01:14.3]} 0-1

[Event "*** Titled Tuesday Blitz"]
[Site "Chess.com"]
[Date "2018.09.04"]
[Round "10"]
[White "Genghis_K"]
[Black "sergiochess83"]
[Result "0-1"]
[WhiteElo "2870"]
[BlackElo "2780"]
[TimeControl "180+2"]
[EndTime "15:51:07 PDT"]
[Termination "sergiochess83 won by resignation"]

1. e4 {[%clk 0:02:56.6]} 1... c5 {[%clk 0:02:59.5]} 2. Nf3 {[%clk 0:02:57.8]}
2... d6 {[%clk 0:02:59]} 3. Bb5+ {[%clk 0:02:58.6]} 3... Nd7 {[%clk 0:02:59]} 4.
c3 {[%clk 0:02:59.5]} 4... Nf6 {[%clk 0:02:58.8]} 5. Qe2 {[%clk 0:03:00.8]} 5...
a6 {[%clk 0:02:52.8]} 6. Ba4 {[%clk 0:03:01.8]} 6... b5 {[%clk 0:02:49.9]} 7.
Bc2 {[%clk 0:03:03]} 7... e5 {[%clk 0:02:41.9]} 8. O-O {[%clk 0:03:02]} 8... Be7
{[%clk 0:02:37.1]} 9. d4 {[%clk 0:03:03.4]} 9... O-O {[%clk 0:02:33.5]} 10. dxe5
{[%clk 0:02:57.2]} 10... Nxe5 {[%clk 0:02:25]} 11. Nxe5 {[%clk 0:02:58.5]} 11...
dxe5 {[%clk 0:02:25.8]} 12. c4 {[%clk 0:03:00]} 12... Be6 {[%clk 0:02:21.5]} 13.
Nd2 {[%clk 0:02:56.8]} 13... Qc7 {[%clk 0:02:11.6]} 14. b3 {[%clk 0:02:54.4]}
14... Nd7 {[%clk 0:02:07.5]} 15. Bb2 {[%clk 0:02:49.9]} 15... f6 {[%clk
0:01:58.2]} 16. Rfd1 {[%clk 0:02:48.9]} 16... Qb7 {[%clk 0:01:47.8]} 17. Rab1
{[%clk 0:02:29.4]} 17... b4 {[%clk 0:01:39.2]} 18. Nf1 {[%clk 0:02:28.8]} 18...
Nb8 {[%clk 0:01:37.8]} 19. Ne3 {[%clk 0:02:26.2]} 19... Nc6 {[%clk 0:01:37.7]}
20. Nd5 {[%clk 0:02:24.1]} 20... Nd4 {[%clk 0:01:36.6]} 21. Bxd4 {[%clk
0:02:21.7]} 21... cxd4 {[%clk 0:01:35.2]} 22. Bd3 {[%clk 0:02:20.6]} 22... Bc5
{[%clk 0:01:31.6]} 23. a4 {[%clk 0:02:15.2]} 23... a5 {[%clk 0:01:22.4]} 24. Rf1
{[%clk 0:02:15.6]} 24... g5 {[%clk 0:01:20.3]} 25. Qd1 {[%clk 0:02:09.6]} 25...
Qg7 {[%clk 0:01:17.5]} 26. Be2 {[%clk 0:02:06.4]} 26... f5 {[%clk 0:01:14.1]}
27. exf5 {[%clk 0:02:01.1]} 27... Bxf5 {[%clk 0:01:13.7]} 28. Bg4 {[%clk
0:02:02.7]} 28... Bg6 {[%clk 0:01:04.9]} 29. Bh5 {[%clk 0:01:58.3]} 29... e4
{[%clk 0:01:00]} 30. Bxg6 {[%clk 0:01:53.5]} 30... Qxg6 {[%clk 0:00:59.3]} 31.
Qg4 {[%clk 0:01:55.1]} 31... Rae8 {[%clk 0:00:57]} 32. Kh1 {[%clk 0:01:53]}
32... h5 {[%clk 0:00:54.6]} 33. Qg3 {[%clk 0:01:54.1]} 33... e3 {[%clk
0:00:49.5]} 34. fxe3 {[%clk 0:00:52.3]} 34... dxe3 {[%clk 0:00:49.8]} 35. Rxf8+
{[%clk 0:00:53.7]} 35... Rxf8 {[%clk 0:00:48.7]} 36. Re1 {[%clk 0:00:54.9]}
36... e2 {[%clk 0:00:40.6]} 37. h4 {[%clk 0:00:54.9]} 37... Rf1+ {[%clk
0:00:38.2]} 38. Kh2 {[%clk 0:00:56.4]} 38... Bd6 {[%clk 0:00:38.1]} 39. Ne7+
{[%clk 0:00:48.3]} 39... Bxe7 {[%clk 0:00:39]} 40. Rxe2 {[%clk 0:00:49.9]} 40...
Bd6 {[%clk 0:00:38.3]} 41. Re5 {[%clk 0:00:45.6]} 41... Rf5 {[%clk 0:00:33.9]}
0-1